bitfinex/quotes_SOLUSD_20250506
["timestamp","ask_amount","ask_price","bid_price","bid_amount"]
[1746569772836,23.1610394,146.07,146.06,0.14216157]
[1746569773211,23.1610394,146.07,146.06,6.988663]
[1746569773419,26.0,146.09,146.06,6.988663]
[1746569773635,26.0,146.09,146.06,25.63831186]
[1746569773837,49.1610394,146.09,146.06,25.63831186]
[1746569774308,49.1610394,146.09,146.08,0.14216157]
[1746569774506,6.84292283,146.14,146.08,0.14216157]
[1746569774833,23.1610394,146.11,146.1,0.14216157]
[1746569775237,23.1610394,146.11,146.09,0.14216157]
[1746569775443,23.1610394,146.1,146.09,0.14216157]
[1746569777431,23.1610394,146.11,146.1,0.14216157]
[1746569779240,23.1610394,146.11,146.1,6.98678853]
[1746569780224,23.1610394,146.12,146.1,6.98678853]
[1746569780428,23.1610394,146.12,146.11,20.62216157]
[1746569782440,23.1610394,146.12,146.11,27.46632008]
[1746569782735,23.1610394,146.12,146.11,46.11596894]
[1746569782944,137.7,146.14,146.12,0.14216157]
[1746569783138,137.7,146.14,146.12,18.79181043]
[1746569783318,23.1610394,146.16,146.15,0.14216157]
[1746569784924,137.7,146.19,146.15,0.14216157]
[1746569785243,23.1610394,146.17,146.16,18.64964886]
[1746569785440,137.7,146.19,146.17,0.14216157]
[1746569785647,23.1610394,146.18,146.17,0.14216157]
[1746569785830,23.1610394,146.18,146.17,20.58216157]
[1746569786033,137.7,146.19,146.17,20.58216157]
[1746569786246,23.1610394,146.18,146.17,39.23181043]
[1746569786626,137.7,146.19,146.17,39.23181043]
[1746569786838,23.1610394,146.18,146.17,39.23181043]
[1746569787754,56.0019205,146.18,146.17,20.44]
[1746569787954,56.0019205,146.18,146.15,20.54]
[1746569787955,61.0510599,146.18,146.15,20.54]
[1746569788247,72.3220788,146.16,146.15,20.54]
[1746569789561,26.0,146.16,146.15,20.54]
[1746569789848,26.0,146.17,146.15,27.52444689]
[1746569790054,26.0,146.17,146.16,0.14216157]
[1746569790055,23.1610394,146.17,146.16,0.14216157]
[1746569790548,26.0,146.18,146.16,0.14216157]
[1746569790857,152.75678521,146.22,146.16,18.79181043]
[1746569791169,137.7,146.21,146.16,39.21181043]
[1746569791464,23.1610394,146.18,146.16,39.21181043]
[1746569791654,23.1610394,146.18,146.17,25.49099797]
[1746569792360,23.1610394,146.18,146.16,20.42]
[1746569792564,23.1610394,146.17,146.16,0.14216157]
[1746569793759,23.1610394,146.17,146.16,6.98397875]
[1746569794264,170.53967282,146.21,146.16,6.98397875]
[1746569794265,26.0,146.18,146.16,6.98397875]
[1746569794452,23.1610394,146.17,146.16,6.98397875]
[1746569795130,23.1610394,146.17,146.16,0.14216157]
[1746569797045,23.1610394,146.17,146.16,6.98397875]
[1746569797563,23.1610394,146.17,146.16,0.14216157]
[1746569798964,26.0,146.19,146.16,0.14216157]
[1746569799258,23.1610394,146.17,146.16,0.14216157]
[1746569799668,26.0,146.19,146.16,0.14216157]
[1746569799859,23.1610394,146.17,146.16,0.14216157]
[1746569800649,23.1610394,146.17,146.16,6.98397875]
[1746569802242,23.1610394,146.17,146.16,0.14216157]
[1746569803261,23.1610394,146.17,146.15,20.54]
[1746569803462,23.1610394,146.16,146.15,20.68216157]
[1746569803664,34.16652496,146.35,146.17,7.7499]
[1746569803876,238.17795787,146.43,146.16,0.14216157]
[1746569803877,11.6165,146.45,146.27,6.1319]
[1746569804047,6.448,146.48,146.3,26.0]
[1746569804257,21.48877507,146.38,146.36,26.0]
[1746569804553,21.48877507,146.38,146.37,59.59181043]
[1746569804959,85.9551003,146.45,146.38,18.79181043]
[1746569805166,23.1610394,146.44,146.38,18.79181043]
[1746569805367,23.1610394,146.43,146.38,18.79181043]
[1746569805751,23.1610394,146.45,146.4,0.14216157]
[1746569806054,135.75861852,146.5,146.4,18.79181043]
[1746569806055,23.1610394,146.44,146.4,18.79181043]
[1746569806259,128.93265045,146.5,146.4,18.79181043]
[1746569806464,23.1610394,146.47,146.4,18.79181043]
[1746569806659,23.1610394,146.46,146.4,18.79181043]
[1746569806878,128.93265045,146.5,146.4,18.79181043]
[1746569807074,23.1610394,146.47,146.4,18.79181043]
[1746569807257,26.0,146.48,146.4,18.79181043]
[1746569807450,23.1610394,146.47,146.4,18.79181043]
[1746569807657,23.1610394,146.46,146.4,18.79181043]
[1746569807973,23.1610394,146.46,146.42,0.14216157]
[1746569808154,23.1610394,146.47,146.44,0.14216157]
[1746569808354,137.7,146.48,146.44,18.79181043]
[1746569808757,23.1610394,146.47,146.44,18.79181043]
[1746569809103,137.7,146.48,146.43,40.84]
[1746569809104,23.1610394,146.45,146.43,40.84]
[1746569809565,23.1610394,146.46,146.44,0.14216157]
[1746569809749,137.7,146.48,146.44,0.14216157]
[1746569809954,23.1610394,146.47,146.45,6.82826903]
[1746569810157,137.7,146.48,146.45,6.82826903]
[1746569810355,23.1610394,146.47,146.46,0.14216157]
[1746569810869,23.1610394,146.48,146.46,18.79181043]
[1746569811067,23.1610394,146.49,146.46,18.79181043]
[1746569811271,23.1610394,146.5,146.46,18.79181043]
[1746569811582,23.1610394,146.49,146.46,18.79181043]
[1746569811882,137.7,146.52,146.46,18.79181043]
[1746569811883,23.1610394,146.47,146.46,0.14216157]
[1746569812053,23.1610394,146.47,146.46,6.96996438]
[1746569812253,26.0,146.51,146.46,6.96996438]
[1746569812454,49.1610394,146.51,146.46,6.96996438]
[1746569812684,26.0,146.51,146.46,6.96996438]
[1746569812855,23.1610394,146.48,146.46,6.96996438]
[1746569813058,23.1610394,146.47,146.46,6.96996438]
[1746569813260,49.1610394,146.51,146.46,6.96996438]
[1746569813479,23.1610394,146.47,146.46,6.96996438]
[1746569814180,26.0,146.51,146.46,6.96996438]
[1746569814481,137.7,146.52,146.46,6.96996438]
[1746569814689,23.1610394,146.5,146.46,24.03947141]
[1746569814870,23.1610394,146.48,146.46,6.96996438]
[1746569815383,23.1610394,146.49,146.46,6.96996438]
[1746569815579,137.7,146.52,146.46,6.96996438]
[1746569815764,23.1610394,146.48,146.46,6.96996438]
[1746569816181,137.7,146.52,146.46,24.03947141]
[1746569816395,23.1610394,146.49,146.46,24.03947141]
[1746569816575,137.7,146.52,146.46,24.03947141]
[1746569816885,23.1610394,146.49,146.46,24.03947141]
[1746569817083,23.1610394,146.48,146.47,6.96949822]
[1746569817262,23.1610394,146.49,146.47,25.61914708]
[1746569818387,137.7,146.52,146.47,25.61914708]
[1746569818885,23.1610394,146.49,146.47,25.61914708]
[1746569819480,137.7,146.52,146.47,25.61914708]
[1746569819873,23.1610394,146.49,146.48,0.14216157]
[1746569820273,137.7,146.52,146.48,0.14216157]
[1746569820471,23.1610394,146.49,146.47,6.82733665]
[1746569820679,137.7,146.52,146.47,6.82733665]
[1746569820881,23.1610394,146.48,146.43,20.42]
[1746569821186,23.1610394,146.44,146.43,27.24906682]
[1746569821397,23.1610394,146.44,146.43,20.42]
[1746569822079,144.52593856,146.5,146.43,27.24916019]
[1746569822290,137.7,146.49,146.43,27.24916019]
[1746569822476,23.1610394,146.44,146.43,27.24916019]
[1746569822678,23.1610394,146.45,146.43,27.24916019]
[1746569822881,23.1610394,146.46,146.44,0.14216157]
[1746569823505,23.1610394,146.48,146.44,18.79181043]
[1746569824800,32.5331,146.53,146.47,0.14216157]
[1746569825089,23.1610394,146.5,146.47,0.14216157]
[1746569825483,137.7,146.52,146.47,0.14216157]
[1746569825675,23.1610394,146.5,146.47,0.14216157]
[1746569826199,23.1610394,146.51,146.47,0.14216157]
[1746569826509,160.8610394,146.52,146.47,0.14216157]
[1746569826675,140.2979953,146.56,146.47,0.14216157]
[1746569826987,137.7,146.55,146.49,18.79181043]
[1746569827184,0.9452953,146.56,146.51,18.79181043]
[1746569827396,23.1610394,146.53,146.51,18.79181043]
[1746569827570,23.1610394,146.54,146.51,0.14216157]
[1746569827773,23.1610394,146.54,146.51,18.79181043]
[1746569828316,137.7,146.55,146.5,20.34]
[1746569828487,23.1610394,146.51,146.5,20.34]
[1746569829007,137.7,146.55,146.5,20.34]
[1746569829186,23.1610394,146.52,146.5,27.16593856]
[1746569829384,23.1610394,146.53,146.5,27.16593856]
[1746569829590,23.1610394,146.52,146.5,27.16593856]
[1746569829784,23.1610394,146.51,146.5,20.34]
[1746569830385,144.5236196,146.55,146.5,20.34]
[1746569830591,23.1610394,146.52,146.5,27.16593856]
[1746569830784,23.1610394,146.51,146.5,20.34]
[1746569830986,23.1610394,146.51,146.5,27.16593856]
[1746569831584,23.1610394,146.51,146.5,20.34]
[1746569831988,23.1610394,146.51,146.5,27.16593856]
[1746569832193,23.55666161,146.64,146.51,18.64964886]
[1746569832397,23.1610394,146.58,146.54,0.14216157]
[1746569832600,23.1610394,146.55,146.52,20.54]
[1746569832778,23.1610394,146.53,146.52,27.36500682]
[1746569833902,23.1610394,146.53,146.52,20.54]
[1746569834105,23.1610394,146.53,146.51,6.82532101]
[1746569834407,23.1610394,146.52,146.51,167.96329353]
[1746569834591,23.1610394,146.52,146.51,154.2242409]
[1746569834790,46.3220788,146.52,146.51,154.2242409]
[1746569835604,46.3220788,146.52,146.51,103.84771457]
[1746569836197,53.14708562,146.52,146.51,103.84771457]
[1746569836485,53.14708562,146.52,146.47,6.82730803]
[1746569836680,53.14708562,146.52,146.46,131.44486396]
[1746569836907,23.1610394,146.47,146.46,131.44486396]
[1746569837279,23.1610394,146.48,146.46,131.44486396]
[1746569837477,137.7,146.5,146.46,131.44486396]
[1746569837478,23.1610394,146.49,146.46,131.44486396]
[1746569838092,23.1610394,146.47,146.46,131.44486396]
[1746569838294,137.7,146.5,146.46,131.44486396]
[1746569838487,137.7,146.49,146.46,131.44506029]
[1746569839128,23.1610394,146.48,146.46,131.44506029]
[1746569839486,137.7,146.49,146.46,131.44506029]
[1746569839902,137.7,146.49,146.46,23.89730984]
[1746569840480,137.7,146.49,146.47,0.14216157]
[1746569840708,23.1610394,146.51,146.47,18.79181043]
[1746569841204,23.1610394,146.51,146.48,6.82687056]
[1746569841404,23.1610394,146.5,146.48,6.82687056]
[1746569842201,139.2168,146.54,146.48,6.82687056]
[1746569842399,23.1610394,146.52,146.48,23.89404696]
[1746569842587,23.1610394,146.51,146.48,6.82687056]
[1746569845200,137.7,146.53,146.49,0.14216157]
[1746569845408,23.1610394,146.52,146.49,0.14216157]
[1746569845605,23.1610394,146.51,146.48,6.96903213]
[1746569845802,23.1610394,146.5,146.48,6.96903213]
[1746569845984,23.1610394,146.51,146.48,6.96903213]
[1746569846387,23.1610394,146.5,146.48,6.96903213]
[1746569846618,23.1610394,146.49,146.46,6.82765743]
[1746569846787,23.1610394,146.48,146.46,6.82765743]
[1746569847102,23.1610394,146.49,146.46,6.82765743]
[1746569847607,23.1610394,146.48,146.46,6.82765743]
[1746569849202,23.1610394,146.47,146.46,6.82765743]
[1746569849508,23.1610394,146.47,146.45,20.32]
[1746569849698,23.1610394,146.46,146.45,20.32]
[1746569850291,137.7,146.48,146.41,23.90547093]
[1746569850493,23.1610394,146.45,146.41,23.90547093]
[1746569850892,23.1610394,146.43,146.41,6.83013455]
[1746569851298,137.7,146.47,146.41,6.83013455]
[1746569851508,23.1610394,146.44,146.41,6.83013455]
[1746569851709,23.1610394,146.43,146.41,6.83013455]
[1746569853413,137.7,146.47,146.41,6.83013455]
[1746569853618,23.1610394,146.44,146.41,6.83013455]
[1746569854614,23.1610394,146.43,146.41,6.83013455]
[1746569855296,0.99,147.68,146.45,50.0]
[1746569855297,6.82267858,146.57,146.45,50.0]
[1746569855505,6.82267858,146.57,146.46,40.66]
[1746569855708,16.82267858,146.57,146.46,40.66]
[1746569855905,23.1610394,146.51,146.46,40.66]
[1746569856123,23.1610394,146.52,146.46,40.66]
[1746569856515,23.1610394,146.52,146.47,6.82733665]
[1746569856727,1.6133,146.58,146.48,18.79181043]
[1746569857420,1.6133,146.58,146.48,20.04015247]
[1746569858120,24.7743394,146.58,146.48,20.04015247]
[1746569858718,24.7743394,146.58,146.5,18.79181043]
[1746569859321,1.5378,146.65,146.54,18.79181043]
[1746569859531,1.5378,146.65,146.53,26.0]
[1746569859532,23.1610394,146.59,146.55,40.66]
[1746569859827,26.0,146.62,146.55,40.66]
[1746569860012,23.1610394,146.6,146.55,40.66]
[1746569860211,24.6988394,146.65,146.55,40.66]
[1746569860418,23.1610394,146.6,146.56,6.8231441]
[1746569860920,6.81942171,146.64,146.55,40.66]
[1746569860921,23.1610394,146.59,146.55,47.48342572]
[1746569861324,23.1610394,146.6,146.55,47.48342572]
[1746569862100,22.96905363,146.59,146.55,40.66]
[1746569862306,22.96905363,146.58,146.55,40.66]
[1746569863113,22.96905363,146.56,146.51,8.07322371]
[1746569863306,22.96905363,146.55,146.51,6.82513729]
[1746569863509,22.96905363,146.54,146.51,6.82513729]
[1746569863907,6.82267858,146.57,146.51,6.82513729]
[1746569864120,22.96905363,146.54,146.51,6.82513729]
[1746569864408,6.82267858,146.57,146.48,61.93870249]
[1746569864409,22.96905363,146.52,146.48,61.93870249]
[1746569865428,22.96905363,146.53,146.48,68.76557305]
[1746569865903,22.96905363,146.52,146.48,68.76557305]
[1746569866309,22.96905363,146.52,146.48,45.79651942]
[1746569866502,6.8236251,146.55,146.48,27.14687056]
[1746569866503,22.96905363,146.51,146.48,27.14687056]
[1746569867227,22.96905363,146.52,146.48,27.14687056]
[1746569868005,22.96905363,146.51,146.48,27.14687056]
[1746569868427,22.96905363,146.5,146.48,27.14687056]
[1746569868726,22.96905363,146.51,146.48,27.14687056]
[1746569869230,137.7,146.52,146.48,50.11592419]
[1746569870113,160.66905363,146.52,146.48,50.11592419]
[1746569870321,22.96905363,146.51,146.48,27.14687056]
[1746569870537,175.79076278,146.52,146.48,50.11592419]
[1746569870835,152.82170915,146.52,146.49,22.96905363]
[1746569871342,152.82170915,146.52,146.48,6.82687056]
[1746569871514,152.82170915,146.52,146.47,6.8272486]
[1746569871515,160.66905363,146.51,146.47,6.8272486]
[1746569871831,160.66905363,146.51,146.47,29.79630223]
[1746569871832,137.7,146.51,146.47,29.79630223]
[1746569872410,160.66905363,146.51,146.47,29.79630223]
[1746569873018,160.66905363,146.51,146.47,6.8272486]
[1746569873226,167.49454464,146.51,146.46,50.11667737]
[1746569874232,160.66905363,146.51,146.46,50.11667737]
[1746569874434,160.66905363,146.51,146.47,22.96905363]
[1746569874735,137.7,146.5,146.47,22.96905363]
[1746569875731,137.7,146.5,146.46,50.11667737]
[1746569876409,137.7,146.5,146.47,22.96905363]
[1746569877119,137.7,146.5,146.48,22.96905363]
[1746569877313,137.7,146.5,146.49,22.96905363]
[1746569877512,137.7,146.5,146.47,18.79181043]
[1746569877716,137.7,146.5,146.49,22.96905363]
[1746569878229,15.12170915,146.52,146.51,6.82547266]
[1746569878416,15.12170915,146.52,146.51,29.79452629]
[1746569880115,38.09076278,146.52,146.5,27.14580802]
[1746569880331,15.12170915,146.52,146.5,50.11486165]
[1746569880523,15.12170915,146.52,146.5,29.79493967]
[1746569881113,15.12170915,146.52,146.51,22.96905363]
[1746569881510,15.12170915,146.52,146.5,6.82588604]
[1746569881737,22.96905363,146.51,146.48,6.82668324]
[1746569882617,15.12170915,146.52,146.48,6.82668324]
[1746569882819,38.09076278,146.52,146.48,6.82668324]
[1746569883435,22.96905363,146.51,146.48,6.82668324]
[1746569883633,22.96905363,146.51,146.47,29.7962704]
[1746569883839,22.96905363,146.51,146.47,6.82721677]
[1746569884036,22.96905363,146.51,146.47,29.7962704]
[1746569884338,15.12170915,146.52,146.49,29.79509504]
[1746569884513,15.12170915,146.52,146.49,6.82604141]
[1746569884710,15.12170915,146.52,146.49,29.79509504]
[1746569884939,15.12170915,146.52,146.49,6.82604141]
[1746569885140,38.09076278,146.52,146.49,6.82604141]
[1746569885441,15.12170915,146.52,146.49,6.82604141]
[1746569886747,152.82170915,146.52,146.5,22.96905363]
[1746569887537,152.82170915,146.52,146.49,22.96905363]
[1746569887838,152.82170915,146.52,146.5,22.96905363]
[1746569888137,152.82170915,146.52,146.49,22.96905363]
[1746569888316,152.82170915,146.52,146.47,23.89567828]
[1746569888513,152.82170915,146.52,146.48,22.96905363]
[1746569888734,22.96905363,146.51,146.46,40.64]
[1746569888917,22.96905363,146.51,146.47,22.96905363]
[1746569889244,175.79076278,146.52,146.47,22.96905363]
[1746569889429,152.82170915,146.52,146.48,22.96905363]
[1746569889737,175.79076278,146.52,146.48,22.96905363]
[1746569890434,175.79076278,146.52,146.47,41.61870249]
[1746569890735,182.61588628,146.52,146.47,29.79595388]
[1746569890940,152.82170915,146.52,146.49,22.96905363]
[1746569891651,152.82170915,146.52,146.47,25.47654911]
[1746569891844,175.79076278,146.52,146.48,22.96905363]
[1746569892043,175.79076278,146.52,146.47,25.47654911]
[1746569892232,182.61591914,146.52,146.47,29.79595388]
[1746569892430,152.82170915,146.52,146.48,22.96905363]
[1746569892630,152.82170915,146.52,146.5,22.96905363]
[1746569892830,152.82170915,146.52,146.51,6.82547266]
[1746569894226,152.82170915,146.52,146.5,29.79481291]
[1746569894640,152.82170915,146.52,146.5,6.82575928]
[1746569895565,152.82170915,146.52,146.5,20.3]
[1746569896726,182.6158019,146.52,146.5,20.3]
[1746569896930,152.82170915,146.52,146.5,20.3]
[1746569900342,152.82170915,146.52,146.49,6.82631413]
[1746569901670,152.82170915,146.52,146.48,27.12680161]
[1746569901968,152.82170915,146.52,146.48,50.09585524]
[1746569902539,152.82170915,146.52,146.49,2.47391177]
[1746569902968,152.82170915,146.52,146.5,2.47391177]
[1746569903148,152.82170915,146.52,146.49,25.4429654]
[1746569903357,152.82170915,146.52,146.49,2.47391177]
[1746569903748,152.82170915,146.52,146.5,2.47391177]
[1746569904673,152.82170915,146.52,146.5,9.29983568]
[1746569905167,152.82170915,146.52,146.49,22.96905363]
[1746569905549,152.82170915,146.52,146.5,29.79482293]
[1746569906071,152.82170915,146.52,146.5,6.8257693]
[1746569906376,152.82170915,146.52,146.49,29.79526342]
[1746569906686,152.82170915,146.52,146.49,6.82620979]
[1746569906872,152.82170915,146.52,146.5,22.96905363]
[1746569907181,152.82170915,146.52,146.5,25.43773028]
[1746569907551,152.82170915,146.52,146.5,22.96905363]
[1746569907977,152.82170915,146.52,146.5,29.79472344]
[1746569908186,152.82170915,146.52,146.5,6.82566981]
[1746569908476,152.82170915,146.52,146.5,29.79472344]
[1746569908783,152.82170915,146.52,146.5,6.82566981]
[1746569909754,152.82170915,146.52,146.49,29.79501607]
[1746569909975,152.82170915,146.52,146.5,20.3]
[1746569910588,152.82170915,146.52,146.5,27.12590727]
[1746569911180,152.82170915,146.52,146.5,50.0949609]
[1746569911378,152.82170915,146.52,146.51,22.96905363]
[1746569911577,152.82170915,146.52,146.5,50.0949609]
[1746569912074,152.82170915,146.52,146.5,27.12590727]
[1746569912385,152.82170915,146.52,146.5,50.0949609]
[1746569912584,152.82170915,146.52,146.5,20.3]
[1746569913851,152.82170915,146.52,146.5,27.12573623]
[1746569914053,152.82170915,146.52,146.5,20.3]
[1746569915172,152.82170915,146.52,146.5,27.12584986]
[1746569915955,152.82170915,146.52,146.5,50.09490349]
[1746569917379,152.82170915,146.52,146.5,27.12584986]
[1746569920251,152.82170915,146.52,146.5,20.3]
[1746569920957,152.82170915,146.52,146.49,27.08630849]
[1746569921175,152.82170915,146.52,146.5,2.47140321]
[1746569921554,167.19011392,146.52,146.5,2.47140321]
[1746569921760,167.19011392,146.52,146.49,20.26]
[1746569922670,14.36840477,146.51,146.49,20.26]
[1746569922880,167.19011392,146.52,146.49,20.26]
[1746569923184,152.06840477,146.51,146.49,20.26]
[1746569923483,137.7,146.51,146.49,20.26]
[1746569924281,152.06840477,146.51,146.49,20.26]
[1746569925082,137.7,146.51,146.49,20.26]
[1746569925284,137.7,146.51,146.5,2.47220575]
[1746569926387,137.7,146.51,146.49,27.08601946]
[1746569927766,152.06840477,146.51,146.49,20.26]
[1746569928369,137.7,146.51,146.49,20.26]
[1746569928585,137.7,146.5,146.49,20.26]
[1746569930083,152.06840477,146.5,146.49,20.26]
[1746569930678,137.7,146.49,146.41,17.07427267]
[1746569930883,137.7,146.48,146.44,14.36840477]
[1746569931083,137.7,146.48,146.45,2.47361063]
[1746569931387,137.7,146.48,146.45,16.8420154]
[1746569931777,137.7,146.48,146.45,21.19629266]
[1746569931968,137.7,146.47,146.44,6.82851383]
[1746569932983,137.7,146.47,146.44,21.1969186]
[1746569934873,137.7,146.47,146.45,14.36840477]
[1746569935079,137.7,146.47,146.46,14.36840477]
[1746569935975,137.7,146.47,146.46,21.19620758]
[1746569936576,137.7,146.5,146.46,38.26571461]
[1746569936886,137.7,146.5,146.48,14.36840477]
[1746569937896,137.7,146.5,146.48,21.19503555]
[1746569938592,137.7,146.5,146.48,6.82663078]
[1746569938792,152.06840477,146.5,146.47,20.26]
[1746569938996,152.06840477,146.5,146.47,27.08713857]
[1746569939882,137.7,146.5,146.47,41.45554334]
[1746569940896,14.36840477,146.49,146.47,20.26]
[1746569941096,137.7,146.48,146.47,20.26]
[1746569941988,137.7,146.48,146.47,34.62840477]
[1746569942175,137.7,146.48,146.47,41.45574142]
[1746569942381,137.7,146.48,146.47,20.26]
[1746569947398,137.7,146.48,146.47,34.62840477]
[1746569948181,152.82170915,146.52,146.47,34.62840477]
[1746569948381,137.7,146.51,146.48,14.36840477]
[1746569949279,137.7,146.51,146.47,27.08732448]
[1746569949487,137.7,146.51,146.48,14.36840477]
[1746569950905,137.7,146.51,146.47,20.26]
[1746569951082,137.7,146.51,146.48,14.36840477]
[1746569952300,137.7,146.51,146.48,21.19524811]
[1746569952600,137.7,146.51,146.49,14.36840477]
[1746569952902,137.7,146.51,146.5,14.36840477]
[1746569953112,15.12170915,146.52,146.5,34.56840477]
[1746569953316,15.12170915,146.52,146.51,14.36840477]
[1746569954184,15.12170915,146.52,146.5,20.2]
[1746569954390,15.12170915,146.52,146.5,34.56840477]
[1746569954588,15.12170915,146.52,146.51,14.36840477]
[1746569955208,15.12170915,146.52,146.5,41.39430022]
[1746569955502,15.12170915,146.52,146.5,27.02589545]
[1746569955707,15.12170915,146.52,146.5,20.2]
[1746569956412,15.12170915,146.52,146.5,34.56840477]
[1746569956710,15.12170915,146.52,146.5,20.2]
[1746569957021,137.7,146.51,146.5,20.2]
[1746569957193,152.06840477,146.51,146.5,20.2]
[1746569957587,152.06840477,146.51,146.47,20.26]
[1746569957902,137.7,146.5,146.47,34.62840477]
[1746569958083,152.06840477,146.49,146.47,20.26]
[1746569958286,137.7,146.49,146.47,20.26]
[1746569959004,14.36840477,146.48,146.45,20.2]
[1746569959184,137.7,146.47,146.45,20.2]
[1746569959588,137.7,146.46,146.45,20.2]
[1746569960302,152.06840477,146.46,146.45,20.2]
[1746569961594,152.06840477,146.46,146.42,21.19804992]
[1746569961794,137.7,146.45,146.42,21.19804992]
[1746569961999,137.7,146.45,146.43,14.36840477]
[1746569962325,137.7,146.45,146.42,21.19804992]
[1746569962817,137.7,146.45,146.43,14.36840477]
[1746569963409,137.7,146.45,146.42,21.19804992]
[1746569963616,137.7,146.45,146.43,14.36840477]
[1746569965014,137.7,146.45,146.44,6.82873531]
[1746569967707,137.7,146.45,146.44,21.19714008]
[1746569968315,137.7,146.45,146.44,6.82873531]
[1746569968621,152.06840477,146.45,146.42,6.82966807]
[1746569968793,152.06840477,146.45,146.41,40.36]
[1746569968999,152.06840477,146.45,146.41,61.55833263]
[1746569970494,137.7,146.44,146.41,41.39833263]
[1746569971015,137.7,146.44,146.41,27.02992786]
[1746569971212,137.7,146.44,146.41,41.39833263]
[1746569971403,152.06840477,146.44,146.41,27.02992786]
[1746569971604,137.7,146.44,146.41,41.39833263]
[1746569972411,152.06840477,146.44,146.41,20.2]
[1746569972710,14.36840477,146.43,146.41,20.2]
[1746569972924,152.06840477,146.44,146.41,27.03003087]
[1746569974115,14.36840477,146.43,146.41,20.2]
[1746569974925,137.7,146.44,146.41,27.03011225]
[1746569975096,152.06840477,146.44,146.41,27.03011225]
[1746569976628,137.7,146.43,146.41,27.03011225]
[1746569978530,137.7,146.48,146.42,14.36840477]
[1746569978723,137.7,146.48,146.46,14.36840477]
[1746569979409,137.7,146.48,146.45,34.50840477]
[1746569980008,137.7,146.48,146.45,20.14]
[1746569980536,137.7,146.48,146.46,21.19620758]
[1746569984037,137.7,146.48,146.46,41.33620758]
[1746569985435,137.7,146.48,146.46,26.96780281]
[1746569985643,137.7,146.48,146.46,26.9677209]
[1746569986844,152.06840477,146.48,146.46,20.14]
[1746569987939,137.7,146.48,146.46,20.14]
[1746569988643,137.7,146.47,146.46,20.14]
[1746569988822,137.7,146.47,146.45,21.19665065]
[1746569991723,137.7,146.47,146.46,14.36840477]
[1746569992254,137.7,146.47,146.45,21.19665065]
[1746569992421,137.7,146.47,146.45,6.82824588]
[1746569992622,137.7,146.47,146.45,21.19665065]
[1746569993634,137.7,146.47,146.46,14.36840477]
[1746569994033,1.5287,146.5,146.46,14.36840477]
[1746569994255,137.7,146.51,146.48,14.36840477]
[1746569994439,137.7,146.5,146.48,21.19483687]
[1746569994743,137.7,146.5,146.48,6.8264321]
[1746569996051,137.7,146.5,146.49,14.36840477]
[1746569996549,137.7,146.5,146.49,21.1948093]
[1746569997340,137.7,146.53,146.49,38.26082063]
[1746569997640,137.7,146.53,146.51,14.36840477]
[1746569998545,137.7,146.53,146.52,21.19341159]
[1746569998854,137.7,146.53,146.52,6.82500682]
[1746569999238,137.7,146.53,146.52,21.19341159]
[1746570001253,1.5559,146.58,146.52,57.04773908]
[1746570001552,14.36840477,146.57,146.53,14.51056634]
[1746570001762,1.5559,146.58,146.53,14.51056634]
[1746570001954,15.92430477,146.58,146.53,14.51056634]
[1746570002451,137.7,146.59,146.56,14.36840477]
[1746570002950,137.7,146.59,146.56,54.48840477]
[1746570003152,139.3212,146.62,146.57,14.36840477]
[1746570003451,152.06840477,146.61,146.57,14.36840477]
[1746570003627,29.48558897,146.6,146.56,61.31136651]
[1746570003826,15.1171842,146.6,146.57,0.14216157]
[1746570004051,15.1171842,146.6,146.58,14.36840477]
[1746570004277,15.1171842,146.6,146.57,14.51056634]
[1746570004459,15.1171842,146.6,146.57,0.14216157]
[1746570004759,15.1171842,146.6,146.56,61.31136651]
[1746570004952,15.1171842,146.6,146.56,54.48840477]
[1746570005268,15.1171842,146.6,146.57,34.42840477]
[1746570006164,15.1171842,146.6,146.57,20.06]
[1746570006363,15.1171842,146.6,146.57,34.42840477]
[1746570007334,15.1171842,146.6,146.57,20.06]
[1746570007754,15.1171842,146.6,146.57,34.42840477]
[1746570007955,15.1171842,146.6,146.58,14.36840477]
[1746570008256,15.1171842,146.6,146.57,41.25103579]
[1746570008860,15.1171842,146.6,146.56,20.06]
[1746570008861,14.36840477,146.59,146.56,20.06]
[1746570009170,14.36840477,146.57,146.51,261.8725]
[1746570009337,14.36840477,146.55,146.53,20.04]
[1746570009662,152.06840477,146.56,146.53,20.04]